fUST/lending_fUST_20241014
["ID","MTS","AMOUNT","RATE_DAILY","PERIOD"]
[340223999,1728856250381,-500.0,0.00027397,2]
[340224000,1728856250398,-1281.61736305,0.00027397,2]
[340224001,1728856250546,-310.64840506,0.00025062,2]
[340224002,1728856250555,-500.0,0.00025062,2]
[340224003,1728856250565,-500.0,0.00025062,2]
[340224004,1728856250575,-500.0,0.00025062,2]
[340224005,1728856250584,-500.0,0.00025062,2]
[340224006,1728856250594,-500.0,0.00025062,2]
[340224007,1728856250604,-343.53308634,0.00025062,2]
[340224008,1728856250613,-165.89630906,0.00025062,2]
[340224009,1728856250623,-2234.11263695,0.00027397,2]
[340224010,1728856250633,-500.0,0.00027397,2]
[340224011,1728856250770,-212.42579064,0.00027397,2]
[340224012,1728856250781,-547.79438167,0.00027397,2]
[340224013,1728856250792,-406.37740929,0.00027397,2]
[340224014,1728856250806,-93.62259071,0.00027397,2]
[340224015,1728856250818,-486.76643586,0.00027397,2]
[340224016,1728856250829,-500.0,0.00027397,2]
[340224017,1728856250838,-444.85725382,0.00027397,2]
[340224018,1728856255243,152.0,0.0002488,120]
[340224020,1728856531757,164.928839,0.00023678,2]
[340224021,1728856569680,24900.0,0.0002396,2]
[340224023,1728857226496,2807.6286949,0.00023791,2]
[340224024,1728857229206,-168.455758,0.0002409,2]
[340224025,1728857229229,-168.455758,0.00024204,2]
[340224026,1728857229251,-168.455758,0.00024318,2]
[340224027,1728857229273,-168.455758,0.00024433,2]
[340224028,1728857229296,-168.455758,0.00024547,2]
[340224029,1728857229318,-200.0,0.00024658,15]
[340224030,1728857229339,-168.455758,0.00024661,2]
[340224031,1728857229360,-230.6631133,0.00024738,2]
[340224032,1728857229384,-168.455758,0.00024775,2]
[340224033,1728857229406,-300.0,0.00024837,2]
[340224034,1728857229427,-300.0,0.00024837,2]
[340224035,1728857229448,-2832.35180434,0.00024838,2]
[340224036,1728857294132,1471.64123672,0.00024001,2]
[340224075,1728857432517,-346.3586386,0.00024827,2]
[340224136,1728857438944,-213.61745955,0.00024827,2]
[340224137,1728857438955,-4020.65344779,0.00024827,2]
[340224138,1728857438964,-1000.0,0.00024847,2]
[340224139,1728857438977,-2119.61025905,0.00024857,2]
[340224140,1728857438990,-168.455758,0.00024889,2]
[340224141,1728857438999,-300.0,0.00024899,2]
[340224142,1728857439008,-300.0,0.00024899,2]
[340224143,1728857439018,-150.112233,0.000249,2]
[340224144,1728857439029,-150.112233,0.000249,3]
[340224145,1728857439039,-150.112233,0.000249,4]
[340224146,1728857439048,-150.112233,0.000249,2]
[340224147,1728857439058,-150.112233,0.000249,2]
[340224148,1728857439069,-150.112233,0.000249,3]
[340224149,1728857439079,-150.112233,0.000249,2]
[340224150,1728857439088,-150.112233,0.000249,5]
[340224151,1728857439099,-150.112233,0.000249,2]
[340224152,1728857439114,-150.112233,0.000249,4]
[340224153,1728857439125,-150.112233,0.000249,2]
[340224154,1728857439135,-2862.79,0.00024917,10]
[340224155,1728857439146,-2385.65,0.00024917,10]
[340224156,1728857439155,-1988.05,0.00024917,10]
[340224157,1728857439164,-373.65,0.00024918,3]
[340224158,1728857439175,-186.82,0.00024918,3]
[340224159,1728857439193,-560.51,0.00024918,3]
[340224160,1728857439207,-188.84398327,0.00024927,2]
[340224161,1728857439217,-167.28816619,0.00024927,2]
[340224162,1728857439231,-500.0,0.00024927,2]
[340224163,1728857439241,-200.0,0.00024927,2]
[340224164,1728857439251,-500.0,0.00024927,2]
[340224165,1728857439262,-500.0,0.00024927,2]
[340224166,1728857439273,-500.0,0.00024927,2]
[340224167,1728857439282,-548.90851867,0.00024927,2]
[340224168,1728857439293,-500.0,0.00024927,2]
[340224169,1728857439303,-500.0,0.00024927,2]
[340224170,1728857439314,-500.0,0.00024927,2]
[340224171,1728857439323,-500.0,0.00024927,2]
[340224172,1728857439333,-747.3,0.00024927,3]
[340224173,1728857439345,-526.77865725,0.00024927,2]
[340224174,1728857439355,-394541.033564,0.00024928,3]
[340224175,1728857439365,-119487.1882451,0.00024928,3]
[340224185,1728857440847,-283476.2612059,0.00024928,3]
[340224186,1728857440857,-191.05,0.00024937,2]
[340224187,1728857440867,-1500.0,0.00024957,2]
[340224188,1728857440876,-1000.0,0.00024957,2]
[340224189,1728857440886,-151.0,0.00024958,7]
[340224190,1728857440895,-151.0,0.00024958,7]
[340224191,1728857440905,-151.0,0.00024958,7]
[340224192,1728857440915,-151.0,0.00024958,7]
[340224193,1728857440925,-155.408013,0.00024958,7]
[340224194,1728857440934,-151.0,0.00024958,7]
[340224195,1728857440945,-285.059285,0.00024958,7]
[340224196,1728857440954,-285.059285,0.00024958,7]
[340224197,1728857440964,-177.194736,0.00024958,7]
[340224198,1728857440974,-151.0,0.00024958,7]
[340224199,1728857440985,-151.0,0.00024958,7]
[340224200,1728857440995,-151.0,0.00024958,7]
[340224201,1728857441005,-151.0,0.00024958,7]
[340224202,1728857441015,-151.0,0.00024958,7]
[340224203,1728857441024,-183.743211,0.00024958,7]
[340224204,1728857441034,-183.743211,0.00024958,7]
[340224205,1728857441044,-151.0,0.00024958,7]
[340224206,1728857441054,-151.0,0.00024958,7]
[340224207,1728857441063,-151.0,0.00024958,7]
[340224208,1728857441072,-151.0,0.00024958,7]
[340224209,1728857441082,-151.0,0.00024958,7]
[340224210,1728857441091,-226.27946,0.00024958,7]
[340224211,1728857441103,-151.665145,0.00024958,7]
[340224212,1728857441114,-226.27946,0.00024958,7]
[340224213,1728857441128,-151.665145,0.00024958,7]
[340224214,1728857441137,-151.0,0.00024958,7]
[340224215,1728857441147,-151.0,0.00024958,7]
[340224216,1728857441156,-287.61509,0.00024958,7]
[340224217,1728857441166,-287.61509,0.00024958,7]
[340224218,1728857441175,-107760.49606648,0.00024968,2]
[340224219,1728857441185,-151.0,0.00024968,7]
[340224220,1728857441195,-151.0,0.00024968,7]
[340224221,1728857441204,-151.0,0.00024968,7]
[340224222,1728857441213,-151.0,0.00024968,7]
[340224223,1728857441223,-151.0,0.00024968,7]
[340224224,1728857441234,-285.059285,0.00024968,7]
[340224225,1728857441243,-285.059285,0.00024968,7]
[340224226,1728857441253,-151.0,0.00024968,7]
[340224227,1728857441263,-151.0,0.00024968,7]
[340224228,1728857441273,-153.345325,0.00024968,7]
[340224229,1728857441283,-151.0,0.00024968,7]
[340224230,1728857441292,-151.0,0.00024968,7]
[340224231,1728857441302,-183.743211,0.00024968,7]
[340224232,1728857441311,-183.743211,0.00024968,7]
[340224233,1728857441321,-151.0,0.00024968,7]
[340224234,1728857441331,-152.858791,0.00024968,7]
[340224235,1728857441341,-274.049264,0.00024968,7]
[340224236,1728857441351,-234.1624,0.00024968,7]
[340224237,1728857441360,-151.0,0.00024968,7]
[340224238,1728857441370,-226.27946,0.00024968,7]
[340224239,1728857441379,-151.665145,0.00024968,7]
[340224240,1728857441389,-226.27946,0.00024968,7]
[340224241,1728857441399,-151.665145,0.00024968,7]
[340224242,1728857441408,-151.0,0.00024968,7]
[340224243,1728857441418,-213.109367,0.00024968,7]
[340224244,1728857441427,-287.61509,0.00024968,7]
[340224245,1728857441437,-287.61509,0.00024968,7]
[340224246,1728857441446,-500.0,0.00024973,2]
[340224247,1728857441455,-500.0,0.00024973,2]
[340224248,1728857441465,-630.89757549,0.00024973,2]
[340224249,1728857441476,-500.0,0.00024973,2]
[340224250,1728857441485,-262.25716481,0.00024973,2]
[340224251,1728857441494,-500.0,0.00024973,2]
[340224252,1728857441593,-500.0,0.00024973,2]
[340224253,1728857441624,-500.61236895,0.00024973,2]
[340224254,1728857441633,-500.0,0.00024973,2]
[340224255,1728857441643,-501.56160497,0.00024973,2]
[340224256,1728857441652,-500.96991501,0.00024973,2]
[340224257,1728857441662,-500.0,0.00024973,2]
[340224258,1728857441671,-500.0,0.00024973,2]
[340224259,1728857441681,-500.0,0.00024973,2]
[340224260,1728857441690,-500.0,0.00024973,2]
[340224261,1728857441700,-500.0,0.00024973,2]
[340224262,1728857441709,-500.0,0.00024973,2]
[340224263,1728857441719,-581.98607354,0.00024973,2]
[340224264,1728857441730,-161.68279538,0.00024973,2]
[340224265,1728857441739,-500.0,0.00024973,2]
[340224266,1728857441749,-338.98454189,0.00024973,2]
[340224267,1728857441758,-550.21781059,0.00024973,2]
[340224268,1728857441767,-500.0,0.00024973,2]
[340224269,1728857441776,-201.88379788,0.00024973,2]
[340224270,1728857441786,-200.22587025,0.00024973,2]
[340224271,1728857441795,-500.0,0.00024973,2]
[340224272,1728857441805,-500.0,0.00024988,2]
[340224273,1728857441814,-150.112233,0.00025,2]
[340224274,1728857441823,-2662.82,0.00025,14]
[340224275,1728857441832,-1588.02,0.00025,14]
[340224276,1728857441841,-398.73978154,0.00025,2]
[340224277,1728857441851,-500.0,0.00025,2]
[340224278,1728857441861,-168.455758,0.00025003,2]
[340224279,1728857441870,-168.455758,0.00025117,2]
[340224280,1728857441879,-150.112233,0.000252,8]
[340224281,1728857441889,-150.112233,0.000252,6]
[340224282,1728857441899,-168.455758,0.00025231,2]
[340224283,1728857441909,-168.455758,0.00025345,2]
[340224284,1728857441919,-150.112233,0.000254,5]
[340224285,1728857441931,-159.075063,0.000254,8]
[340224286,1728857441942,-150.112233,0.000255,6]
[340224287,1728857441952,-150.112233,0.000255,5]
[340224288,1728857441962,-150.112233,0.000257,8]
[340224289,1728857441972,-150.112233,0.000257,6]
[340224290,1728857441984,-150.112233,0.000257,10]
[340224291,1728857441994,-150.112233,0.000259,5]
[340224292,1728857442004,-150.112233,0.000259,9]
[340224293,1728857442014,-233.656,0.00025934,11]
[340224294,1728857442023,-150.112233,0.00026,5]
[340224295,1728857442033,-150.112233,0.00026,5]
[340224296,1728857442043,-150.112233,0.000262,8]
[340224297,1728857442052,-150.112233,0.000262,10]
[340224298,1728857442063,-150.112233,0.000262,9]
[340224299,1728857442072,-747.3,0.00026288,3]
[340224300,1728857442082,-373.64,0.00026288,3]
[340224301,1728857442091,-1494.6,0.00026297,3]
[340224302,1728857442102,-150.112233,0.000263,10]
[340224303,1728857442114,-1000.0,0.00026327,2]
[340224304,1728857442125,-150.0,0.00026336,2]
[340224305,1728857442135,-150.0,0.00026336,2]
[340224306,1728857442144,-526.0,0.00026336,2]
[340224307,1728857442158,-1157.0,0.00026336,2]
[340224308,1728857442168,-1186.203,0.00026336,2]
[340224309,1728857442179,-151.0,0.00026342,7]
[340224310,1728857442189,-151.0,0.00026342,7]
[340224311,1728857442198,-151.0,0.00026342,7]
[340224312,1728857442208,-151.0,0.00026342,7]
[340224313,1728857442219,-156.087978,0.00026342,7]
[340224314,1728857442230,-339.861925,0.00026342,7]
[340224315,1728857442243,-151.0,0.00026342,7]
[340224316,1728857442253,-339.861925,0.00026342,7]
[340224317,1728857442264,-151.0,0.00026342,7]
[340224318,1728857442273,-151.0,0.00026342,7]
[340224319,1728857442282,-1087.79407,0.00026342,7]
[340224320,1728857442292,-1087.79407,0.00026342,7]
[340224321,1728857442303,-151.0,0.00026342,7]
[340224322,1728857442313,-151.0,0.00026342,7]
[340224323,1728857442323,-151.0,0.00026342,7]
[340224324,1728857442332,-207.68312,0.00026342,7]
[340224325,1728857442342,-392.08666,0.00026342,7]
[340224326,1728857442351,-151.0,0.00026342,7]
[340224327,1728857442360,-392.08666,0.00026342,7]
[340224328,1728857442370,-1057.818521,0.00026342,7]
[340224329,1728857442381,-1057.818521,0.00026342,7]
[340224330,1728857442391,-151.0,0.00026342,7]
[340224331,1728857442401,-151.0,0.00026342,7]
[340224332,1728857442411,-424.959169,0.00026342,7]
[340224333,1728857442421,-424.959169,0.00026342,7]
[340224334,1728857442443,-151.0,0.00026342,7]
[340224335,1728857442454,-151.0,0.00026342,7]
[340224336,1728857442465,-394.519564,0.00026342,7]
[340224337,1728857442478,-394.519564,0.00026342,7]
[340224338,1728857442488,-151.0,0.00026342,7]
[340224339,1728857442499,-180.552346,0.00026342,7]
[340224340,1728857442510,-151.0,0.00026342,7]
[340224341,1728857442521,-151.0,0.00026342,7]
[340224342,1728857442533,-180.552346,0.00026342,7]
[340224343,1728857442544,-151.0,0.00026342,7]
[340224344,1728857442554,-500.0,0.00026342,2]
[340224345,1728857442565,-500.0,0.00026342,2]
[340224346,1728857442576,-837.488597,0.00026342,2]
[340224347,1728857442587,-1000.0,0.00026342,2]
[340224348,1728857442596,-500.0,0.00026342,2]
[340224349,1728857442608,-501.68304675,0.00026342,2]
[340224350,1728857442619,-1000.0,0.00026342,2]
[340224351,1728857442630,-1000.0,0.00026342,2]
[340224352,1728857442640,-1001.83759543,0.00026342,2]
[340224353,1728857442649,-1000.0,0.00026342,2]
[340224354,1728857442659,-976.59051778,0.00026342,2]
[340224355,1728857442669,-1000.0,0.00026342,2]
[340224356,1728857442678,-1000.0,0.00026342,2]
[340224357,1728857442688,-313.8634274,0.00026357,2]
[340224358,1728857442698,-1000.0,0.0002637,2]
[340224359,1728857442708,-151.0,0.0002637,7]
[340224360,1728857442718,-151.0,0.0002637,7]
[340224361,1728857442731,-174.921465,0.0002637,7]
[340224362,1728857442742,-367.01754,0.0002637,7]
[340224363,1728857442751,-367.01754,0.0002637,7]
[340224364,1728857442761,-378.755391,0.0002637,7]
[340224365,1728857442771,-378.755391,0.0002637,7]
[340224366,1728857442781,-150.112233,0.000264,9]
[340224367,1728857442791,-1647.63411782,0.0002647,7]
[340224368,1728857442802,-7188.15411334,0.0002647,7]
[340224369,1728857442812,-157.175027,0.0002647,7]
[340224370,1728857442822,-151.0,0.0002647,7]
[340224371,1728857442832,-226.27946,0.0002647,7]
[340224372,1728857442842,-151.665145,0.0002647,7]
[340224373,1728857442851,-226.27946,0.0002647,7]
[340224374,1728857442861,-151.665145,0.0002647,7]
[340224375,1728857442872,-151.0,0.0002647,7]
[340224376,1728857442882,-287.61509,0.0002647,7]
[340224377,1728857442892,-287.61509,0.0002647,7]
[340224378,1728857442901,-150.112233,0.000265,6]
[340224379,1728857442912,-150.112233,0.000267,6]
[340224380,1728857442922,-150.112233,0.000267,8]
[340224381,1728857442932,-2662.82,0.000267,14]
[340224382,1728857442942,-1588.02,0.000267,14]
[340224383,1728857442951,-151.0,0.000267,7]
[340224384,1728857442961,-183.743211,0.000267,7]
[340224385,1728857442971,-183.743211,0.000267,7]
[340224386,1728857442982,-151.0,0.000267,7]
[340224387,1728857442991,-308.2597489,0.00026849,2]
[340224388,1728857443001,-150.112233,0.000269,7]
[340224390,1728857443010,-4781.24811231,0.00026973,2]
[340224391,1728857443020,-420.0,0.00026977,2]
[340224392,1728857443030,-1000.0,0.00027,2]
[340224393,1728857443039,-150.112233,0.00027,9]
[340224394,1728857443048,-7100.37664958,0.00027026,2]
[340224395,1728857443059,-200.0,0.0002707,16]
[340224396,1728857443068,-150.112233,0.000271,8]
[340224397,1728857443078,-4020.65344777,0.00027111,2]
[340224398,1728857443087,-336.6,0.00027117,2]
[340224399,1728857443097,-503.82563144,0.00027154,10]
[340224400,1728857443110,-2119.61025903,0.00027195,2]
[340224401,1728857443120,-150.112233,0.000272,8]
[340224402,1728857443130,-150.0,0.000272,2]
[340224403,1728857443139,-285.059285,0.00027205,7]
[340224404,1728857443149,-285.059285,0.00027205,7]
[340224405,1728857443159,-151.0,0.00027205,7]
[340224406,1728857443168,-159.092164,0.00027205,7]
[340224407,1728857443177,-7100.37664958,0.00027224,2]
[340224408,1728857443187,-151.921265,0.000273,2]
[340224409,1728857443197,-151.0,0.00027362,7]
[340224410,1728857443207,-155.384485,0.00027362,7]
[340224411,1728857443216,-151.0,0.00027362,7]
[340224412,1728857443228,-151.0,0.00027362,7]
[340224413,1728857443238,-151.0,0.00027362,7]
[340224414,1728857443248,-151.0,0.00027362,7]
[340224415,1728857443257,-183.743211,0.00027362,7]
[340224416,1728857443267,-183.743211,0.00027362,7]
[340224417,1728857443277,-151.0,0.00027362,7]
[340224418,1728857443286,-151.0,0.00027362,7]
[340224427,1728857443375,-226.27946,0.00027362,7]
[340224429,1728857443385,-151.665145,0.00027362,7]
[340224432,1728857443395,-226.27946,0.00027362,7]
[340224433,1728857443404,-151.665145,0.00027362,7]
[340224435,1728857443414,-151.0,0.00027362,7]
[340224437,1728857443423,-151.0,0.00027362,7]
[340224439,1728857443432,-151.0,0.00027362,7]
[340224442,1728857443442,-151.0,0.00027362,7]
[340224444,1728857443456,-287.61509,0.00027362,7]
[340224446,1728857443465,-287.61509,0.00027362,7]
[340224448,1728857443475,-151.0,0.00027362,7]
[340224450,1728857443486,-158.402721,0.00027362,7]
[340224452,1728857443495,-151.0,0.00027362,7]
[340224454,1728857443506,-174.921465,0.00027362,7]
[340224456,1728857443515,-367.01754,0.00027362,7]
[340224459,1728857443526,-367.01754,0.00027362,7]
[340224461,1728857443538,-339.861925,0.00027362,7]
[340224462,1728857443548,-167.563721,0.00027362,7]
[340224465,1728857443559,-339.861925,0.00027362,7]
[340224466,1728857443569,-279.291305,0.00027362,7]
[340224468,1728857443579,-151.0,0.00027362,7]
[340224469,1728857443591,-1087.79407,0.00027362,7]
[340224470,1728857443601,-1087.79407,0.00027362,7]
[340224471,1728857443610,-378.755391,0.00027362,7]
[340224472,1728857443621,-151.0,0.00027362,7]
[340224473,1728857443632,-378.755391,0.00027362,7]
[340224475,1728857443643,-151.0,0.00027362,7]
[340224476,1728857443654,-151.0,0.00027362,7]
[340224477,1728857443665,-392.08666,0.00027362,7]
[340224478,1728857443676,-151.0,0.00027362,7]
[340224479,1728857443688,-392.08666,0.00027362,7]
[340224480,1728857443698,-1057.818521,0.00027362,7]
[340224481,1728857443708,-1057.818521,0.00027362,7]
[340224482,1728857443718,-151.0,0.00027362,7]
[340224483,1728857443731,-151.0,0.00027362,7]
[340224484,1728857443744,-424.959169,0.00027362,7]
[340224485,1728857443755,-424.959169,0.00027362,7]
[340224486,1728857443765,-151.0,0.00027362,7]
[340224487,1728857443774,-151.0,0.00027362,7]
[340224488,1728857443786,-394.519564,0.00027362,7]
[340224489,1728857443797,-394.519564,0.00027362,7]
[340224490,1728857443809,-151.0,0.00027362,7]
[340224491,1728857443819,-151.0,0.00027362,7]
[340224492,1728857443830,-180.552346,0.00027362,7]
[340224493,1728857443839,-151.0,0.00027362,7]
[340224494,1728857443849,-180.552346,0.00027362,7]
[340224495,1728857443858,-151.0,0.00027362,7]
[340224496,1728857443868,-500.0,0.00027373,2]
[340224497,1728857443877,-379.88423943,0.00027373,2]
[340224498,1728857443887,-500.0,0.00027373,2]
[340224499,1728857443900,-500.0,0.00027373,2]
[340224500,1728857443909,-500.0,0.00027373,2]
[340224501,1728857443919,-500.0,0.00027373,2]
[340224502,1728857443930,-164.00220981,0.00027373,2]
[340224503,1728857443940,-500.0,0.00027373,2]
[340224505,1728857443949,-500.74090198,0.00027373,2]
[340224506,1728857443959,-500.0,0.00027373,2]
[340224507,1728857443968,-500.0,0.00027373,2]
[340224508,1728857443977,-500.0,0.00027373,2]
[340224509,1728857443987,-500.0,0.00027373,2]
[340224510,1728857443996,-500.0,0.00027373,2]
[340224511,1728857444006,-608.73119954,0.00027373,2]
[340224512,1728857444016,-500.0,0.00027373,2]
[340224513,1728857444026,-500.0,0.00027373,2]
[340224514,1728857444037,-500.0,0.00027373,2]
[340224515,1728857444048,-500.0,0.00027373,2]
[340224516,1728857444058,-541.23806229,0.00027373,2]
[340224517,1728857444069,-500.0,0.00027373,2]
[340224518,1728857444082,-500.0,0.00027373,2]
[340224519,1728857444094,-151.0,0.00027373,7]
[340224520,1728857444107,-151.0,0.00027373,7]
[340224521,1728857444117,-151.0,0.00027373,7]
[340224522,1728857444128,-274.432926,0.00027373,7]
[340224523,1728857444138,-151.0,0.00027373,7]
[340224524,1728857444150,-285.059285,0.00027374,7]
[340224525,1728857444159,-285.059285,0.00027374,7]
[340224526,1728857444169,-158.193843,0.00027374,7]
[340224527,1728857444179,-151.0,0.00027377,7]
[340224528,1728857444189,-190.689129,0.00027377,7]
[340224529,1728857444198,-151.0,0.00027377,7]
[340224530,1728857444208,-151.0,0.00027377,7]
[340224531,1728857444217,-285.059285,0.00027377,7]
[340224532,1728857444227,-285.059285,0.00027377,7]
[340224533,1728857444240,-151.0,0.00027377,7]
[340224534,1728857444250,-183.743211,0.00027377,7]
[340224535,1728857444259,-183.743211,0.00027377,7]
[340224536,1728857444269,-151.0,0.00027377,7]
[340224537,1728857444279,-151.0,0.00027377,7]
[340224538,1728857444290,-226.27946,0.00027377,7]
[340224539,1728857444302,-151.665145,0.00027377,7]
[340224540,1728857444313,-226.27946,0.00027377,7]
[340224541,1728857444322,-151.665145,0.00027377,7]
[340224542,1728857444331,-151.0,0.00027377,7]
[340224543,1728857444341,-287.61509,0.00027377,7]
[340224544,1728857444351,-287.61509,0.00027377,7]
[340224545,1728857444360,-69330.95531835,0.00027384,2]
[340224546,1728857444369,-151.0,0.00027384,7]
[340224547,1728857444379,-287.827478,0.00027384,7]
[340224548,1728857444388,-301.737397,0.00027384,7]
[340224549,1728857444398,-151.0,0.00027384,7]
[340224550,1728857444408,-301.737397,0.00027384,7]
[340224551,1728857444419,-151.0,0.00027384,3]
[340224552,1728857444430,-151.0,0.00027384,3]
[340224553,1728857444440,-151.0,0.00027384,7]
[340224554,1728857444451,-151.0,0.00027384,7]
[340224555,1728857444461,-278.169442,0.00027384,7]
[340224556,1728857444471,-162.242588,0.00027384,7]
[340224557,1728857444483,-151.0,0.00027384,7]
[340224558,1728857444493,-151.0,0.00027384,7]
[340224559,1728857444502,-151.0,0.00027384,7]
[340224560,1728857444511,-151.0,0.00027384,7]
[340224561,1728857444522,-151.0,0.00027384,7]
[340224562,1728857444531,-151.0,0.00027384,7]
[340224563,1728857444542,-151.0,0.00027384,7]
[340224564,1728857444554,-151.0,0.00027384,7]
[340224565,1728857444565,-151.0,0.00027384,7]
[340224566,1728857444574,-151.0,0.00027384,7]
[340224567,1728857444586,-285.059285,0.00027384,7]
[340224568,1728857444595,-285.059285,0.00027384,7]
[340224569,1728857444605,-151.0,0.00027384,7]
[340224570,1728857444615,-183.743211,0.00027384,7]
[340224571,1728857444626,-183.743211,0.00027384,7]
[340224572,1728857444636,-151.0,0.00027384,7]
[340224573,1728857444645,-151.0,0.00027384,7]
[340224574,1728857444654,-226.27946,0.00027384,7]
[340224575,1728857444664,-151.665145,0.00027384,7]
[340224576,1728857444674,-226.27946,0.00027384,7]
[340224577,1728857444685,-151.665145,0.00027384,7]
[340224578,1728857444695,-151.0,0.00027384,7]
[340224579,1728857444705,-151.0,0.00027384,7]
[340224580,1728857444716,-151.0,0.00027384,7]
[340224581,1728857444727,-287.61509,0.00027384,7]
[340224582,1728857444739,-287.61509,0.00027384,7]
[340224583,1728857444750,-151.0,0.00027384,7]
[340224584,1728857444760,-151.0,0.00027384,7]
[340224585,1728857444771,-151.0,0.00027384,7]
[340224586,1728857444780,-174.921465,0.00027384,7]
[340224587,1728857444791,-174.921465,0.00027384,7]
[340224588,1728857444801,-367.01754,0.00027384,7]
[340224589,1728857444811,-367.01754,0.00027384,7]
[340224590,1728857444821,-339.861925,0.00027384,7]
[340224591,1728857444830,-339.861925,0.00027384,7]
[340224592,1728857444840,-151.0,0.00027384,7]
[340224593,1728857444850,-1087.79407,0.00027384,7]
[340224594,1728857444859,-1087.79407,0.00027384,7]
[340224595,1728857444868,-378.755391,0.00027384,7]
[340224596,1728857444878,-151.0,0.00027384,7]
[340224597,1728857444888,-378.755391,0.00027384,7]
[340224598,1728857444897,-151.0,0.00027384,7]
[340224599,1728857444906,-151.0,0.00027384,7]
[340224600,1728857444915,-392.08666,0.00027384,7]
[340224601,1728857444925,-151.0,0.00027384,7]
[340224602,1728857444934,-392.08666,0.00027384,7]
[340224603,1728857445010,-1057.818521,0.00027384,7]
[340224604,1728857445022,-1057.818521,0.00027384,7]
[340224605,1728857445034,-151.0,0.00027384,7]
[340224606,1728857445044,-151.0,0.00027384,7]
[340224607,1728857445054,-424.959169,0.00027384,7]
[340224608,1728857445064,-424.959169,0.00027384,7]
[340224609,1728857445074,-151.0,0.00027384,7]
[340224610,1728857445083,-151.0,0.00027384,7]
[340224611,1728857445093,-394.519564,0.00027384,7]
[340224612,1728857445104,-394.519564,0.00027384,7]
[340224613,1728857445115,-151.0,0.00027384,7]
[340224614,1728857445124,-180.552346,0.00027384,7]
[340224615,1728857445134,-151.0,0.00027384,7]
[340224616,1728857445143,-162.368823,0.00027384,7]
[340224617,1728857445154,-180.552346,0.00027384,7]
[340224618,1728857445163,-151.0,0.00027384,7]
[340224619,1728857445172,-325.31,0.00027386,2]
[340224620,1728857445183,-325.31,0.00027386,2]
[340224621,1728857445193,-325.31,0.00027386,2]
[340224622,1728857445202,-325.31,0.00027386,2]
[340224623,1728857445212,-325.31,0.00027386,2]
[340224624,1728857445221,-325.31,0.00027386,2]
[340224625,1728857445231,-325.31,0.00027386,2]
[340224626,1728857445241,-325.31,0.00027386,2]
[340224627,1728857445250,-325.31,0.00027386,2]
[340224628,1728857445260,-325.31,0.00027386,2]
[340224629,1728857445270,-151.0,0.00027387,7]
[340224630,1728857445279,-301.737397,0.00027387,7]
[340224631,1728857445289,-301.737397,0.00027387,7]
[340224632,1728857445298,-151.0,0.00027387,7]
[340224633,1728857445308,-301.737397,0.00027387,7]
[340224634,1728857445318,-162.143744,0.00027387,7]
[340224635,1728857445328,-301.737397,0.00027387,7]
[340224636,1728857445337,-151.0,0.00027387,3]
[340224637,1728857445347,-151.0,0.00027387,3]
[340224638,1728857445356,-151.0,0.00027387,3]
[340224639,1728857445366,-151.0,0.00027387,3]